[Event "Championnat d'Europe Rapide"]
[Date "2024.12.07"]
[White "Mastrovasilis, Dimitrios"]
[Black "Ribeiro, Rodrigo"]
[WhiteElo "2537"]
[BlackElo "2143"]
[Round "1.27"]
[Result "1-0"]
[TimeControl "900+10"]

1. e4 {[%emt 00:00:04] [%clk 00:15:14]} c5 {[%emt 00:00:43] [%clk 00:14:39]} 2.
Nf3 {[%emt 00:00:07] [%clk 00:15:16]} e6 {[%emt 00:00:02] [%clk 00:14:48]} 3. c4
{[%emt 00:00:11] [%clk 00:15:15]} Nc6 {[%emt 00:00:54] [%clk 00:14:05]} 4. d4
{[%emt 00:00:10] [%clk 00:15:14]} cxd4 {[%emt 00:00:02] [%clk 00:14:13]} 5. Nxd4
{[%emt 00:00:03] [%clk 00:15:20]} Nf6 {[%emt 00:00:03] [%clk 00:14:21]} 6. Nc3
{[%emt 00:00:04] [%clk 00:15:25]} Bb4 {[%emt 00:00:34] [%clk 00:13:58]} 7. Nxc6
{[%emt 00:00:10] [%clk 00:15:24]} dxc6 {[%emt 00:00:04] [%clk 00:14:05]} 8.
Qxd8+ {[%emt 00:00:12] [%clk 00:15:21]} Kxd8 {[%emt 00:00:03] [%clk 00:14:14]}
9. e5 {[%emt 00:00:11] [%clk 00:15:19]} Ne4 {[%emt 00:00:22] [%clk 00:14:02]}
10. a3 {[%emt 00:00:33] [%clk 00:14:56]} Bxc3+ {[%emt 00:01:04] [%clk 00:13:09]}
11. bxc3 {[%emt 00:00:02] [%clk 00:15:01]} Nxc3 {[%emt 00:00:52] [%clk
00:12:29]} 12. h4 {[%emt 00:00:59] [%clk 00:14:11]} Na4 {[%emt 00:05:04] [%clk
00:07:36]} 13. h5 {[%emt 00:00:36] [%clk 00:13:44]} Kc7 {[%emt 00:01:35] [%clk
00:06:11]} 14. h6 {[%emt 00:01:36] [%clk 00:12:18]} g6 {[%emt 00:00:02] [%clk
00:06:20]} 15. Rh3 {[%emt 00:01:45] [%clk 00:10:41]} Rd8 {[%emt 00:00:41] [%clk
00:05:50]} 16. Rf3 {[%emt 00:00:51] [%clk 00:09:59]} Rd7 {[%emt 00:00:03] [%clk
00:05:59]} 17. Bg5 {[%emt 00:01:32] [%clk 00:08:36]} Nc5 {[%emt 00:01:14] [%clk
00:04:56]} 18. Rd1 {[%emt 00:00:14] [%clk 00:08:31]} Ne4 {[%emt 00:00:02] [%clk
00:05:04]} 19. Be3 {[%emt 00:01:30] [%clk 00:07:11]} f5 {[%emt 00:03:13] [%clk
00:02:02]} 20. exf6 {[%emt 00:00:05] [%clk 00:07:16]} Rxd1+ {[%emt 00:00:02]
[%clk 00:02:10]} 21. Kxd1 {[%emt 00:00:04] [%clk 00:07:21]} e5 {[%emt 00:00:02]
[%clk 00:02:19]} 22. Bd3 {[%emt 00:03:10] [%clk 00:04:21]} Nd6 {[%emt 00:01:38]
[%clk 00:00:52]} 23. c5 {[%emt 00:01:51] [%clk 00:02:40]} Nf5 {[%emt 00:00:30]
[%clk 00:00:32]} 24. Bc4 {[%emt 00:01:44] [%clk 00:01:05]} Nh4 {[%emt 00:00:29]
[%clk 00:00:12]} 25. Rg3 {[%emt 00:00:13] [%clk 00:01:02]} Nf5 {[%emt 00:00:04]}
26. Rg5 {[%emt 00:00:24] [%clk 00:00:45]} Bd7 {[%emt 00:00:20] [%clk 00:00:12]}
27. Ke1 {[%emt 00:00:20] [%clk 00:00:36]} Rf8 {[%emt 00:00:02] [%clk 00:00:19]}
28. f7 {[%emt 00:00:04] [%clk 00:00:42]} Nxh6 {[%emt 00:00:18] [%clk 00:00:11]}
29. Rxe5 {[%emt 00:00:21] [%clk 00:00:31]} Nxf7 {[%emt 00:00:06] [%clk
00:00:16]} 30. Re7 {[%emt 00:00:06] [%clk 00:00:34]} Nd8 {[%emt 00:00:07] [%clk
00:00:20]} 31. Rxh7 {[%emt 00:00:12] [%clk 00:00:31]} Kc8 {[%emt 00:00:01] [%clk
00:00:29]} 32. Rg7 {[%emt 00:00:19] [%clk 00:00:22]} Bf5 {[%emt 00:00:01] [%clk
00:00:38]} 33. f3 {[%emt 00:00:07] [%clk 00:00:25]} Re8 {[%emt 00:00:12] [%clk
00:00:36]} 34. Kf2 {[%emt 00:00:03] [%clk 00:00:31]} Ne6 {[%emt 00:00:01] [%clk
00:00:45]} 35. Rf7 {[%emt 00:00:09] [%clk 00:00:32]} Nd8 {[%emt 00:00:41] [%clk
00:00:15]} 36. Rh7 {[%emt 00:00:12] [%clk 00:00:30]} Ne6 {[%emt 00:00:09] [%clk
00:00:16]} 37. g4 {[%emt 00:00:05] [%clk 00:00:34]} Bb1 {[%emt 00:00:01] [%clk
00:00:25]} 38. Rf7 {[%emt 00:00:05] [%clk 00:00:38]} Nd8 {[%emt 00:00:17] [%clk
00:00:19]} 39. Rh7 {[%emt 00:00:19] [%clk 00:00:28]} Ne6 {[%emt 00:00:02] [%clk
00:00:27]} 40. a4 {[%emt 00:00:16] [%clk 00:00:22]} a6 {[%emt 00:00:26] [%clk
00:00:11]} 41. a5 {[%emt 00:00:04] [%clk 00:00:28]} Kb8 {[%emt 00:00:07] [%clk
00:00:14]} 42. Kg3 {[%emt 00:00:22] [%clk 00:00:15]} Ka7 {[%emt 00:00:08] [%clk
00:00:16]} 43. Bf2 {[%emt 00:00:13] [%clk 00:00:13]} Ng5 {[%emt 00:00:14] [%clk
00:00:12]} 44. Rh1 {[%emt 00:00:01] [%clk 00:00:21]} Bc2 {[%emt 00:00:11] [%clk
00:00:11]} 45. Rc1 {[%emt 00:00:10] [%clk 00:00:22]} Ba4 {[%emt 00:00:01] [%clk
00:00:20]} 46. Re1 {[%emt 00:00:03] [%clk 00:00:29]} Rf8 {[%emt 00:00:01] [%clk
00:00:29]} 47. f4 {[%emt 00:00:05] [%clk 00:00:34]} Nf7 {[%emt 00:00:26] [%clk
00:00:13]} 48. Re7 {[%emt 00:00:10] [%clk 00:00:34]} Nh6 {[%emt 00:00:12] [%clk
00:00:11]} 49. Bd4 {[%emt 00:00:09] [%clk 00:00:35]} Bc2 {[%emt 00:00:05] [%clk
00:00:16]} 50. Bg7 {[%emt 00:00:06] [%clk 00:00:39]} 1-0

[Site "Europe Echecs"]

[Event "Championnat d'Europe Rapide"]
[Date "2024.12.07"]
[White "Smeets, Jan"]
[Black "Stojkovska, Monika"]
[WhiteElo "2552"]
[BlackElo "2067"]
[Round "1.29"]
[Result "1-0"]
[TimeControl "900+10"]

1. e4 {[%emt 00:00:04] [%clk 00:15:18]} e6 {[%clk 00:15:19]} 2. d4 {[%emt
00:00:07] [%clk 00:15:22]} d5 {[%clk 00:15:28]} 3. e5 {[%emt 00:00:01] [%clk
00:15:31]} c5 {[%emt 00:00:01] [%clk 00:15:36]} 4. c3 {[%emt 00:00:01] [%clk
00:15:40]} Nc6 {[%clk 00:15:45]} 5. Nf3 {[%emt 00:00:01] [%clk 00:15:49]} Qb6
{[%emt 00:00:01] [%clk 00:15:54]} 6. a3 {[%emt 00:00:14] [%clk 00:15:45]} c4
{[%emt 00:00:01] [%clk 00:16:02]} 7. Nbd2 {[%emt 00:00:03] [%clk 00:15:52]} Na5
{[%emt 00:00:33] [%clk 00:15:40]} 8. Be2 {[%emt 00:00:07] [%clk 00:15:55]} Bd7
{[%emt 00:00:04] [%clk 00:15:46]} 9. O-O {[%emt 00:00:02] [%clk 00:16:02]} Ne7
{[%emt 00:00:10] [%clk 00:15:47]} 10. Re1 {[%emt 00:00:01] [%clk 00:16:10]} h6
{[%emt 00:00:02] [%clk 00:15:55]} 11. Rb1 {[%emt 00:00:14] [%clk 00:16:07]} Nb3
{[%emt 00:01:13] [%clk 00:14:52]} 12. Nxb3 {[%emt 00:01:41] [%clk 00:14:36]}
cxb3 {[%emt 00:00:02] [%clk 00:15:00]} 13. c4 {[%emt 00:00:39] [%clk 00:14:07]}
Ba4 {[%emt 00:01:05] [%clk 00:14:05]} 14. Be3 {[%emt 00:00:43] [%clk 00:13:34]}
Nc6 {[%emt 00:01:06] [%clk 00:13:09]} 15. Rc1 {[%emt 00:00:39] [%clk 00:13:05]}
Be7 {[%emt 00:01:14] [%clk 00:12:05]} 16. Nd2 {[%emt 00:00:25] [%clk 00:12:49]}
Na5 {[%emt 00:02:08] [%clk 00:10:07]} 17. Bd3 {[%emt 00:01:44] [%clk 00:11:15]}
Qd8 {[%emt 00:02:02] [%clk 00:08:14]} 18. Qg4 {[%emt 00:00:19] [%clk 00:11:06]}
Kf8 {[%emt 00:01:03] [%clk 00:07:22]} 19. cxd5 {[%emt 00:01:26] [%clk 00:09:50]}
exd5 {[%emt 00:01:27] [%clk 00:06:05]} 20. f4 {[%emt 00:01:17] [%clk 00:08:43]}
h5 {[%emt 00:00:27] [%clk 00:05:48]} 21. Qh3 {[%emt 00:00:16] [%clk 00:08:36]}
Bd7 {[%emt 00:02:34] [%clk 00:03:24]} 22. f5 {[%emt 00:00:02] [%clk 00:08:44]}
f6 {[%emt 00:00:01] [%clk 00:03:33]} 23. Nf3 {[%emt 00:02:59] [%clk 00:05:55]}
a6 {[%emt 00:01:07] [%clk 00:02:36]} 24. Nh4 {[%emt 00:01:38] [%clk 00:04:28]}
Be8 {[%emt 00:00:06] [%clk 00:02:40]} 25. Ng6+ {[%emt 00:00:01] [%clk 00:04:36]}
Bxg6 {[%emt 00:00:06] [%clk 00:02:44]} 26. fxg6 {[%emt 00:00:02] [%clk
00:04:45]} Nc6 {[%emt 00:01:00] [%clk 00:01:54]} 27. Bf2 {[%emt 00:00:09] [%clk
00:04:45]} Qc8 {[%emt 00:01:07] [%clk 00:00:58]} 28. Bf5 {[%emt 00:00:04] [%clk
00:04:51]} Qd8 {[%emt 00:00:02] [%clk 00:01:06]} 29. Qxb3 {[%emt 00:00:03] [%clk
00:04:56]} Rb8 {[%emt 00:00:36] [%clk 00:00:41]} 30. Re2 {[%emt 00:00:19] [%clk
00:04:47]} h4 {[%emt 00:00:24] [%clk 00:00:26]} 31. Rce1 {[%emt 00:00:02] [%clk
00:04:55]} Qa5 {[%emt 00:00:10] [%clk 00:00:27]} 32. Bd7 {[%emt 00:00:26] [%clk
00:04:39]} Rd8 {[%emt 00:00:09] [%clk 00:00:28]} 33. Qxb7 {[%emt 00:00:08] [%clk
00:04:41]} 1-0

[Site "Europe Echecs"]

[Event "Championnat d'Europe Rapide"]
[Date "2024.12.07"]
[White "Nadj, Vanja"]
[Black "Grigoriants, Sergey"]
[WhiteElo "1886"]
[BlackElo "2542"]
[Round "1.30"]
[Result "0-1"]
[TimeControl "900+10"]

1. e4 {[%emt 00:00:04] [%clk 00:15:15]} c5 {[%emt 00:00:03] [%clk 00:15:17]} 2.
Nf3 {[%emt 00:00:04] [%clk 00:15:22]} d6 {[%emt 00:00:06] [%clk 00:15:19]} 3. d4
{[%emt 00:00:02] [%clk 00:15:30]} cxd4 {[%emt 00:00:06] [%clk 00:15:24]} 4. Nxd4
{[%emt 00:00:03] [%clk 00:15:38]} Nf6 {[%emt 00:00:04] [%clk 00:15:30]} 5. Nc3
{[%emt 00:00:01] [%clk 00:15:46]} a6 {[%emt 00:00:03] [%clk 00:15:37]} 6. h3
{[%emt 00:00:09] [%clk 00:15:46]} e6 {[%emt 00:00:18] [%clk 00:15:29]} 7. g4
{[%emt 00:00:03] [%clk 00:15:53]} b5 {[%emt 00:00:47] [%clk 00:14:52]} 8. a3
{[%emt 00:00:11] [%clk 00:15:52]} Bb7 {[%emt 00:00:06] [%clk 00:14:56]} 9. Bg2
{[%emt 00:00:02] [%clk 00:15:59]} Be7 {[%emt 00:00:39] [%clk 00:14:28]} 10. O-O
{[%emt 00:00:05] [%clk 00:16:04]} Qc7 {[%emt 00:00:22] [%clk 00:14:16]} 11. Re1
{[%emt 00:00:19] [%clk 00:15:54]} O-O {[%emt 00:00:10] [%clk 00:14:17]} 12. g5
{[%emt 00:03:36] [%clk 00:12:27]} Nfd7 {[%emt 00:00:06] [%clk 00:14:22]} 13.
Nce2 {[%emt 00:00:46] [%clk 00:11:50]} Nc6 {[%emt 00:00:29] [%clk 00:14:04]} 14.
c3 {[%emt 00:01:18] [%clk 00:10:42]} Rfe8 {[%emt 00:00:41] [%clk 00:13:33]} 15.
Ng3 {[%emt 00:00:33] [%clk 00:10:18]} Bf8 {[%emt 00:00:09] [%clk 00:13:35]} 16.
h4 {[%emt 00:00:28] [%clk 00:10:00]} Rac8 {[%emt 00:00:34] [%clk 00:13:11]} 17.
Bh3 {[%emt 00:00:31] [%clk 00:09:39]} d5 {[%emt 00:02:02] [%clk 00:11:20]} 18.
exd5 {[%emt 00:00:56] [%clk 00:08:52]} Nxd4 {[%emt 00:00:04] [%clk 00:11:27]}
19. Qxd4 {[%emt 00:00:59] [%clk 00:08:03]} Bxd5 {[%emt 00:01:21] [%clk
00:10:17]} 20. Nh5 {[%emt 00:00:42] [%clk 00:07:30]} Qc4 {[%emt 00:07:31]} 21.
Be3 {[%clk 00:05:27]} Nc5 {[%emt 00:00:16] [%clk 00:05:02]} 22. Qxc4 {[%emt
00:00:55] [%clk 00:04:42]} Bxc4 {[%emt 00:00:16] [%clk 00:04:56]} 23. Bf1 {[%emt
00:00:37] [%clk 00:04:14]} Na4 {[%emt 00:00:58] [%clk 00:04:09]} 24. Rab1 {[%emt
00:00:28] [%clk 00:03:56]} Ba2 {[%emt 00:00:57] [%clk 00:03:22]} 25. Ra1 {[%emt
00:00:03] [%clk 00:04:03]} Bb3 {[%emt 00:00:04] [%clk 00:03:29]} 26. Rab1 {[%emt
00:00:01] [%clk 00:04:11]} e5 {[%emt 00:00:17] [%clk 00:03:22]} 27. Ng3 {[%emt
00:00:14] [%clk 00:04:06]} Rcd8 {[%emt 00:00:03] [%clk 00:03:30]} 28. Bg2 {[%emt
00:01:03] [%clk 00:03:12]} Nc5 {[%emt 00:01:31] [%clk 00:02:10]} 29. Bf1 {[%emt
00:00:15] [%clk 00:03:06]} Nd3 {[%emt 00:00:27] [%clk 00:01:53]} 30. Re2 {[%emt
00:00:12] [%clk 00:03:04]} Bc5 {[%emt 00:00:30] [%clk 00:01:34]} 31. Nf5 {[%emt
00:00:23] [%clk 00:02:50]} Be6 {[%emt 00:00:29] [%clk 00:01:16]} 32. Ng3 {[%emt
00:00:18] [%clk 00:02:41]} Bg4 {[%emt 00:00:10] [%clk 00:01:16]} 33. Rd2 {[%emt
00:00:14] [%clk 00:02:37]} Bxe3 {[%emt 00:00:03] [%clk 00:01:24]} 34. Rxd3
{[%emt 00:00:14] [%clk 00:02:32]} Bb6 {[%emt 00:00:19] [%clk 00:01:16]} 35. Rxd8
{[%emt 00:00:12] [%clk 00:02:29]} Rxd8 {[%emt 00:00:01] [%clk 00:01:25]} 36. Be2
{[%emt 00:00:30] [%clk 00:02:09]} Bxe2 {[%emt 00:00:50] [%clk 00:00:45]} 37.
Nxe2 {[%emt 00:00:02] [%clk 00:02:18]} Kf8 {[%emt 00:00:03] [%clk 00:00:52]} 38.
Kf1 {[%emt 00:00:10] [%clk 00:02:17]} Ke7 {[%emt 00:00:08] [%clk 00:00:55]} 39.
Ke1 {[%emt 00:00:02] [%clk 00:02:25]} Ke6 {[%emt 00:00:11] [%clk 00:00:55]} 40.
Ng3 {[%emt 00:00:05] [%clk 00:02:29]} f5 {[%emt 00:00:15] [%clk 00:00:50]} 41.
gxf6 {[%emt 00:00:06] [%clk 00:02:33]} gxf6 {[%emt 00:00:01] [%clk 00:00:59]}
42. Ke2 {[%emt 00:00:08] [%clk 00:02:36]} f5 {[%emt 00:00:01] [%clk 00:01:08]}
43. f3 {[%emt 00:00:16] [%clk 00:02:29]} Rg8 {[%emt 00:00:06] [%clk 00:01:13]}
44. Nf1 {[%emt 00:00:30] [%clk 00:02:09]} Rg2+ {[%emt 00:00:27] [%clk 00:00:56]}
45. Kd3 {[%emt 00:00:14] [%clk 00:02:05]} Kd5 {[%emt 00:00:02] [%clk 00:01:05]}
46. Nd2 {[%emt 00:00:16] [%clk 00:01:59]} Rh2 {[%emt 00:00:19] [%clk 00:00:55]}
47. Re1 {[%emt 00:00:20] [%clk 00:01:49]} Rxh4 {[%emt 00:00:05] [%clk 00:01:00]}
48. b3 {[%emt 00:00:08] [%clk 00:01:51]} Rh3 {[%emt 00:00:15] [%clk 00:00:56]}
49. c4+ {[%emt 00:00:08] [%clk 00:01:53]} bxc4+ {[%emt 00:00:02] [%clk
00:01:04]} 50. bxc4+ {[%emt 00:00:04] [%clk 00:01:58]} Kd6 {[%emt 00:00:04]
[%clk 00:01:11]} 51. c5+ {[%emt 00:00:40] [%clk 00:01:28]} Bxc5 {[%emt 00:00:05]
[%clk 00:01:16]} 52. Nc4+ {[%emt 00:00:02] [%clk 00:01:36]} Kc6 {[%emt 00:00:08]
[%clk 00:01:18]} 53. Nxe5+ {[%emt 00:00:07] [%clk 00:01:40]} Kd5 {[%emt
00:00:01] [%clk 00:01:27]} 54. Kc2 {[%emt 00:00:07] [%clk 00:01:42]} Bxa3 {[%emt
00:00:23] [%clk 00:01:14]} 55. f4 {[%emt 00:00:12] [%clk 00:01:39]} Bb4 {[%emt
00:00:18] [%clk 00:01:07]} 56. Rd1+ {[%emt 00:00:02] [%clk 00:01:47]} Ke4 {[%emt
00:00:03] [%clk 00:01:14]} 57. Nd3 {[%emt 00:00:12] [%clk 00:01:46]} Rh2+ {[%emt
00:00:07] [%clk 00:01:17]} 58. Kb3 {[%emt 00:00:07] [%clk 00:01:49]} a5 {[%emt
00:00:15] [%clk 00:01:13]} 59. Nxb4 {[%emt 00:01:36] [%clk 00:00:23]} axb4
{[%emt 00:00:02] [%clk 00:01:20]} 60. Rf1 {[%emt 00:00:04] [%clk 00:00:29]} h5
{[%emt 00:00:13] [%clk 00:01:17]} 61. Kxb4 {[%emt 00:00:03] [%clk 00:00:36]} h4
{[%emt 00:00:02] [%clk 00:01:25]} 62. Kc4 {[%emt 00:00:03] [%clk 00:00:43]} h3
{[%emt 00:00:03] [%clk 00:01:32]} 63. Kb3 {[%emt 00:00:04] [%clk 00:00:49]} Re2
{[%emt 00:00:11] [%clk 00:01:31]} 64. Kc4 {[%emt 00:00:11] [%clk 00:00:48]} h2
{[%emt 00:00:03] [%clk 00:01:39]} 0-1

[Site "Europe Echecs"]

[Event "Championnat d'Europe Rapide"]
[Date "2024.12.07"]
[White "Grigorov, Grigor"]
[Black "Papadimitriou, Athanasios"]
[WhiteElo "2497"]
[BlackElo "2267"]
[Round "1.31"]
[Result "1/2-1/2"]
[TimeControl "900+10"]

1. d4 {[%emt 00:00:05] [%clk 00:15:16]} d5 {[%emt 00:00:14] [%clk 00:15:05]} 2.
c4 {[%emt 00:00:02] [%clk 00:15:23]} dxc4 {[%emt 00:00:04] [%clk 00:15:12]} 3.
e3 {[%emt 00:00:06] [%clk 00:15:27]} g6 {[%emt 00:00:06] [%clk 00:15:16]} 4.
Bxc4 {[%emt 00:00:04] [%clk 00:15:33]} Bg7 {[%emt 00:00:02] [%clk 00:15:23]} 5.
Nf3 {[%emt 00:00:04] [%clk 00:15:39]} Nf6 {[%emt 00:00:03] [%clk 00:15:31]} 6.
O-O {[%emt 00:00:06] [%clk 00:15:43]} O-O {[%emt 00:00:03] [%clk 00:15:38]} 7.
Nc3 {[%emt 00:00:08] [%clk 00:15:44]} a6 {[%emt 00:00:03] [%clk 00:15:45]} 8. a4
{[%emt 00:00:44] [%clk 00:15:09]} c5 {[%emt 00:00:05] [%clk 00:15:50]} 9. d5
{[%emt 00:00:25] [%clk 00:14:54]} Bg4 {[%emt 00:00:04] [%clk 00:15:57]} 10. Be2
{[%emt 00:00:31] [%clk 00:14:32]} Nbd7 {[%emt 00:00:45] [%clk 00:15:22]} 11. e4
{[%emt 00:00:07] [%clk 00:14:35]} Ne8 {[%emt 00:00:44] [%clk 00:14:48]} 12. Bf4
{[%emt 00:00:22] [%clk 00:14:22]} Nd6 {[%emt 00:00:49] [%clk 00:14:10]} 13. Nd2
{[%emt 00:00:19] [%clk 00:14:13]} Bxe2 {[%emt 00:00:44] [%clk 00:13:36]} 14.
Qxe2 {[%emt 00:00:03] [%clk 00:14:20]} Ne5 {[%emt 00:01:32] [%clk 00:12:14]} 15.
Be3 {[%emt 00:01:41] [%clk 00:12:49]} c4 {[%emt 00:00:24] [%clk 00:12:01]} 16.
f4 {[%emt 00:00:27] [%clk 00:12:31]} Nd3 {[%emt 00:00:21] [%clk 00:11:50]} 17.
e5 {[%emt 00:00:06] [%clk 00:12:35]} Nxb2 {[%emt 00:00:37] [%clk 00:11:24]} 18.
Ndb1 {[%emt 00:02:04] [%clk 00:10:41]} Nf5 {[%emt 00:00:53] [%clk 00:10:41]} 19.
Na3 {[%emt 00:01:19] [%clk 00:09:33]} Qa5 {[%emt 00:02:27] [%clk 00:08:24]} 20.
Rfc1 {[%emt 00:01:48] [%clk 00:07:55]} Nxa4 {[%emt 00:03:42] [%clk 00:04:52]}
21. Nxa4 {[%emt 00:00:19] [%clk 00:07:46]} Qxa4 {[%emt 00:00:03] [%clk
00:04:59]} 22. Bf2 {[%emt 00:01:57] [%clk 00:05:59]} c3 {[%emt 00:02:25] [%clk
00:02:45]} 23. Nc4 {[%emt 00:00:02] [%clk 00:06:06]} Qb5 {[%emt 00:00:04] [%clk
00:02:51]} 24. Rab1 {[%emt 00:00:18] [%clk 00:05:58]} Qxd5 {[%emt 00:00:05]
[%clk 00:02:56]} 25. Nb6 {[%clk 00:06:07]} Qd2 {[%emt 00:00:02] [%clk 00:03:04]}
26. Qe4 {[%emt 00:01:08] [%clk 00:05:08]} Rad8 {[%emt 00:00:23] [%clk 00:02:53]}
27. Nc4 {[%emt 00:01:26] [%clk 00:03:52]} Qd3 {[%emt 00:00:21] [%clk 00:02:42]}
28. Qxd3 {[%emt 00:00:03] [%clk 00:03:59]} Rxd3 {[%emt 00:00:02] [%clk
00:02:51]} 29. Rxb7 {[%emt 00:00:01] [%clk 00:04:08]} Rc8 {[%emt 00:00:55] [%clk
00:02:05]} 30. Nb2 {[%emt 00:02:26] [%clk 00:01:52]} Rd2 {[%emt 00:00:35] [%clk
00:01:40]} 31. Be1 {[%emt 00:00:08] [%clk 00:01:54]} Rd4 {[%emt 00:00:49] [%clk
00:01:02]} 32. g3 {[%emt 00:00:55] [%clk 00:01:09]} c2 {[%emt 00:00:13] [%clk
00:01:00]} 33. Kf2 {[%clk 00:01:17]} h5 {[%emt 00:00:14] [%clk 00:00:56]} 34.
Rb3 {[%emt 00:00:11] [%clk 00:01:15]} Rd7 {[%emt 00:00:32] [%clk 00:00:35]} 35.
Rc3 {[%emt 00:00:44] [%clk 00:00:41]} Rdc7 {[%emt 00:00:02] [%clk 00:00:44]} 36.
R1xc2 {[%emt 00:00:09] [%clk 00:00:41]} Rxc3 {[%emt 00:00:01] [%clk 00:00:53]}
37. Rxc3 {[%emt 00:00:02] [%clk 00:00:50]} Rxc3 {[%emt 00:00:01] [%clk
00:01:01]} 38. Bxc3 {[%emt 00:00:01] [%clk 00:00:59]} f6 {[%emt 00:00:05] [%clk
00:01:06]} 39. Nd3 {[%emt 00:00:05] [%clk 00:01:03]} fxe5 {[%emt 00:00:07] [%clk
00:01:10]} 40. fxe5 {[%emt 00:00:02] [%clk 00:01:11]} Bh6 {[%emt 00:00:13] [%clk
00:01:07]} 41. Nb2 {[%emt 00:00:39] [%clk 00:00:42]} Be3+ {[%emt 00:00:33] [%clk
00:00:44]} 42. Kf3 {[%emt 00:00:02] [%clk 00:00:50]} Bd4 {[%emt 00:00:05] [%clk
00:00:49]} 43. Bxd4 {[%emt 00:00:01] [%clk 00:00:59]} Nxd4+ {[%emt 00:00:01]
[%clk 00:00:57]} 44. Ke4 {[%clk 00:01:08]} Nf5 {[%emt 00:00:17] [%clk 00:00:50]}
45. Nc4 {[%emt 00:00:08] [%clk 00:01:10]} Kf7 {[%emt 00:00:03] [%clk 00:00:57]}
1/2-1/2

[Site "Europe Echecs"]

[Event "Championnat d'Europe Rapide"]
[Date "2024.12.07"]
[White "Vanden Bussche, Steven"]
[Black "Saric, Ante"]
[WhiteElo "2049"]
[BlackElo "2482"]
[Round "1.32"]
[Result "0-1"]
[TimeControl "900+10"]

1. d4 {[%emt 00:00:03] [%clk 00:15:18]} Nf6 {[%clk 00:15:19]} 2. Bf4 {[%emt
00:00:01] [%clk 00:15:26]} d5 {[%emt 00:00:06] [%clk 00:15:24]} 3. e3 {[%clk
00:15:35]} c5 {[%clk 00:15:34]} 4. c3 {[%emt 00:00:01] [%clk 00:15:44]} Nc6
{[%emt 00:00:02] [%clk 00:15:42]} 5. Nd2 {[%emt 00:00:02] [%clk 00:15:52]} Bf5
{[%emt 00:00:01] [%clk 00:15:50]} 6. Qb3 {[%emt 00:00:02] [%clk 00:16:00]} Qd7
{[%emt 00:00:01] [%clk 00:15:59]} 7. Bb5 {[%emt 00:00:38] [%clk 00:15:32]} a6
{[%emt 00:00:27] [%clk 00:15:42]} 8. Bxc6 {[%emt 00:00:08] [%clk 00:15:33]} Qxc6
{[%emt 00:00:02] [%clk 00:15:50]} 9. Ngf3 {[%emt 00:00:06] [%clk 00:15:37]} c4
{[%emt 00:00:15] [%clk 00:15:45]} 10. Qd1 {[%emt 00:00:13] [%clk 00:15:33]} Nd7
{[%emt 00:01:25] [%clk 00:14:30]} 11. O-O {[%emt 00:00:16] [%clk 00:15:28]} e6
{[%emt 00:00:01] [%clk 00:14:39]} 12. Re1 {[%emt 00:01:10] [%clk 00:14:28]} Be7
{[%emt 00:00:29] [%clk 00:14:20]} 13. Ne5 {[%emt 00:01:54] [%clk 00:12:44]} Nxe5
{[%emt 00:00:04] [%clk 00:14:26]} 14. Bxe5 {[%emt 00:00:02] [%clk 00:12:52]} f6
{[%emt 00:00:26] [%clk 00:14:10]} 15. Bg3 {[%emt 00:02:01] [%clk 00:11:01]} Kf7
{[%emt 00:00:07] [%clk 00:14:12]} 16. f3 {[%emt 00:00:35] [%clk 00:10:36]} b5
{[%emt 00:02:15] [%clk 00:12:08]} 17. e4 {[%emt 00:00:05] [%clk 00:10:41]} Bg6
{[%clk 00:12:17]} 18. Qe2 {[%emt 00:01:30] [%clk 00:09:21]} Rhe8 {[%emt
00:00:02] [%clk 00:12:25]} 19. a3 {[%emt 00:00:32] [%clk 00:08:59]} a5 {[%emt
00:00:01] [%clk 00:12:33]} 20. h3 {[%emt 00:01:11] [%clk 00:07:59]} Bf8 {[%emt
00:00:09] [%clk 00:12:34]} 21. Qf2 {[%emt 00:00:14] [%clk 00:07:55]} b4 {[%emt
00:00:26] [%clk 00:12:18]} 22. a4 {[%emt 00:00:14] [%clk 00:07:52]} bxc3 {[%emt
00:01:47] [%clk 00:10:41]} 23. bxc3 {[%emt 00:00:02] [%clk 00:07:59]} Ra7 {[%emt
00:00:05] [%clk 00:10:45]} 24. exd5 {[%emt 00:00:40] [%clk 00:07:29]} exd5
{[%emt 00:00:09] [%clk 00:10:47]} 25. Rxe8 {[%emt 00:00:03] [%clk 00:07:35]}
Qxe8 {[%emt 00:00:05] [%clk 00:10:53]} 26. Nf1 {[%emt 00:00:56] [%clk 00:06:50]}
Rb7 {[%emt 00:01:01] [%clk 00:10:01]} 27. Ne3 {[%emt 00:01:43] [%clk 00:05:17]}
Qc6 {[%emt 00:00:23] [%clk 00:09:46]} 28. Qd2 {[%emt 00:00:36] [%clk 00:04:53]}
Rb3 {[%emt 00:00:08] [%clk 00:09:48]} 29. Be1 {[%emt 00:00:02] [%clk 00:05:02]}
Ba3 {[%emt 00:00:36] [%clk 00:09:22]} 30. Rd1 {[%emt 00:01:48] [%clk 00:03:24]}
Rb2 {[%emt 00:00:32] [%clk 00:08:59]} 31. Qc1 {[%emt 00:00:21] [%clk 00:03:14]}
Ra2 {[%emt 00:00:09] [%clk 00:08:59]} 0-1

[Site "Europe Echecs"]